[Event "22nd ETCC Women 2019"]
[Site "Batumi"]
[Date "2019.10.25"]
[Round "2.1"]
[White "Koridze, Lile"]
[Black "Shvayger, Yuliya"]
[Result "0-1"]
[ECO "E06"]
[WhiteElo "1988"]
[BlackElo "2336"]
[Annotator "NA"]
[PlyCount "128"]
[EventDate "2019.10.24"]
[EventType "team-tourn"]
[EventCountry "GEO"]
[SourceTitle "playchess.com"]
[Source "ChessBase"]
[SourceQuality "1"]
[WhiteTeam "Georgia"]
[BlackTeam "Israel"]
[WhiteTeamCountry "GEO"]
[BlackTeamCountry "ISR"]
[TimeControl "40/5400+30:1800+30"]

1. d4 {[%emt 0:00:00]} Nf6 {[%emt 0:00:00]} 2. c4 {[%emt 0:00:00]} e6 {[%emt 0:00:00]} 3. g3 {[%emt 0:00:00]} d5 {[%emt 0:00:32]} 4. Bg2 {[%emt 0:00:00]} Be7 {[%emt 0:00:32]} 5. Nf3 {[%emt 0:00:29]} O-O {[%emt 0:00:10]} 6. O-O {[%emt 0:00:06]} dxc4 {[%emt 0:00:24]} 7. Ne5 {[%emt 0:02:31]} Nc6 {[%emt 0:02:42]} 8. Nxc6 {[%emt 0:02:40]} bxc6 {[%emt 0:03:20]} 9. Na3 {[%emt 0:00:25]} Bxa3 {[%emt 0:00:25]} 10. bxa3 {[%emt 0:00:04]} Ba6 {[%emt 0:01:02]} 11. Qd2 {[%emt 0:00:14]} Rb8 {[%emt 0:08:48]} 12. Rd1 {[%emt 0:02:11]} Qd6 {[%emt 0:08:13]} 13. Qa5 {[%emt 0:10:59]} Rb6 {[%emt 0:04:16]} 14. Bd2 {[%emt 0:07:10]} c3 {[%emt 0:18:19]} 15. Bxc3 {[%emt 0:02:20]} Nd5 {[%emt 0:00:26]} 16. Bxd5 {[%emt 0:16:13]} Qxd5 {[%emt 0:00:20]} 17. Qxd5 {[%emt 0:02:04]} cxd5 {[%emt 0:00:12]} 18. Bb4 {[%emt 0:04:19]} Rfb8 {[%emt 0:01:11]} 19. Rd2 {[%emt 0:06:07]} Bc4 {[%emt 0:02:43]} 20. Kg2 {[%emt 0:03:35]} f6 {[%emt 0:00:20]} 21. Rc1 {[%emt 0:02:07]} Kf7 {[%emt 0:02:22]} 22. h4 {[%emt 0:01:57]} Rb5 {[%emt 0:02:04]} 23. Rcc2 {[%emt 0:05:42]} e5 {[%emt 0:05:19]} 24. e3 {[%emt 0:04:48]} Ke6 {[%emt 0:21:22]} 25. Rb2 {[%emt 0:05:05]} e4 {[%emt 0:05:32]} 26. Bc3 {[%emt 0:02:20]} R5b6 {[%emt 0:01:12]} 27. Rb4 {[%emt 0:04:17]} Kf5 {[%emt 0:00:07]} 28. f3 {[%emt 0:01:37]} exf3+ {[%emt 0:00:13]} 29. Kxf3 {[%emt 0:00:04]} h5 {[%emt 0:00:10]} 30. Rdb2 {[%emt 0:04:06]} g5 {[%emt 0:00:35]} 31. a4 {[%emt 0:01:28]} Re8 {[%emt 0:03:59]} 32. Rxb6 {[%emt 0:01:22]} cxb6 {[%emt 0:01:14]} 33. a5 {[%emt 0:00:10]} b5 {[%emt 0:03:41]} 34. a3 {[%emt 0:02:51]} a6 {[%emt 0:00:31]} 35. Bb4 {[%emt 0:00:34]} Bd3 {[%emt 0:00:34]} 36. Rh2 {[%emt 0:00:23]} Be4+ {[%emt 0:00:54]} 37. Kf2 {[%emt 0:00:44]} Kg4 {[%emt 0:00:06]} 38. Bd6 {[%emt 0:00:59]} Rc8 {[%emt 0:00:44]} 39. Bc5 {[%emt 0:00:22]} Rc6 {[%emt 0:00:01]} 40. Be7 {[%emt 0:00:00]} Rc2+ {[%emt 0:00:00]} 41. Kg1 {[%emt 0:03:05]} Rc1+ {[%emt 0:04:00]} 42. Kf2 {[%emt 0:00:13]} Bd3 {[%emt 0:08:53]} 43. Kg2 {[%emt 0:02:05]} Rf1 {[%emt 0:01:34]} 44. Bd6 {[%emt 0:07:57]} Rf3 {[%emt 0:01:49]} 45. hxg5 {[%emt 0:05:52]} fxg5 {[%emt 0:00:16]} 46. Be5 {[%emt 0:00:58]} Rxe3 {[%emt 0:03:08]} 47. Kf2 {[%emt 0:00:52]} Re2+ {[%emt 0:02:25]} 48. Kg1 {[%emt 0:00:26]} Re1+ {[%emt 0:00:01]} 49. Kf2 {[%emt 0:00:15]} Rf1+ {[%emt 0:00:06]} 50. Kg2 {[%emt 0:03:47]} Rf3 {[%emt 0:01:33]} 51. Kg1 {[%emt 0:02:16]} Rf1+ {[%emt 0:00:36]} 52. Kg2 {[%emt 0:00:05]} Ra1 {[%emt 0:00:03]} 53. Bd6 {[%emt 0:01:00]} Be4+ {[%emt 0:00:22]} 54. Kf2 {[%emt 0:00:21]} Rd1 {[%emt 0:00:05]} 55. Ke3 {[%emt 0:03:22]} Rd3+ {[%emt 0:00:05]} 56. Ke2 {[%emt 0:00:03]} Rxd4 {[%emt 0:00:05]} 57. Rf2 {[%emt 0:00:18]} Rc4 58. Rf8 {[%emt 0:00:41]} d4 {[%emt 0:01:33]} 59. Rg8 {[%emt 0:03:32]} Rc2+ {[%emt 0:03:46]} 60. Kd1 {[%emt 0:00:37]} d3 {[%emt 0:00:11]} 61. Bf4 {[%emt 0:03:50]} Bf3+ {[%emt 0:00:05]} 62. Ke1 {[%emt 0:00:03]} Re2+ {[%emt 0:00:19]} 63. Kf1 {[%emt 0:00:05]} Bg2+ {[%emt 0:00:15]} 64. Kg1 {[%emt 0:00:10]} Kf3 {[%emt 0:00:06]} 0-1

[Event "22nd ETCC Women 2019"]
[Site "Batumi"]
[Date "2019.10.25"]
[Round "2.2"]
[White "Khomeriki, Nino"]
[Black "Lagno, Kateryna"]
[Result "1/2-1/2"]
[ECO "D76"]
[WhiteElo "2315"]
[BlackElo "2549"]
[Annotator "ChessBase"]
[PlyCount "119"]
[EventDate "2019.10.24"]
[EventType "team-tourn"]
[EventCountry "GEO"]
[SourceTitle "playchess.com"]
[Source "ChessBase"]
[SourceQuality "1"]
[WhiteTeam "Georgia"]
[BlackTeam "Russia"]
[WhiteTeamCountry "GEO"]
[BlackTeamCountry "RUS"]
[TimeControl "40/5400+30:1800+30"]

1. d4 {[%emt 0:00:00]} Nf6 {[%emt 0:00:00]} 2. c4 {[%emt 0:00:00]} g6 {[%emt 0:00:00]} 3. Nf3 {[%emt 0:00:00]} Bg7 {[%emt 0:00:02]} 4. g3 {[%emt 0:00:12]} O-O {[%emt 0:00:27]} 5. Bg2 {[%emt 0:00:42]} d5 {[%emt 0:00:15]} 6. cxd5 {[%emt 0:01:04]} Nxd5 {[%emt 0:00:05]} 7. O-O {[%emt 0:00:44]} Nb6 {[%emt 0:00:26]} 8. Nc3 {[%emt 0:00:31]} Nc6 {[%emt 0:00:36]} 9. e3 {[%emt 0:00:35]} Re8 {[%emt 0:00:22]} 10. Re1 {[%emt 0:00:22]} a5 {[%emt 0:03:51]} 11. Qe2 {[%emt 0:02:17]} e5 {[%emt 0:00:42]} 12. Nxe5 {[%emt 0:03:08]} Nxe5 {[%emt 0:00:29]} 13. dxe5 {[%emt 0:00:06]} Bxe5 {[%emt 0:00:03]} 14. e4 {[%emt 0:00:18]} Be6 {[%emt 0:01:03]} 15. f4 {[%emt 0:02:34]} Bxc3 {[%emt 0:01:25]} 16. bxc3 {[%emt 0:00:07]} Bd5 {[%emt 0:00:18]} 17. Ba3 {[%emt 0:23:11]} Qf6 {[%emt 0:44:32]} 18. Qf2 {[%emt 0:14:05]} Bc6 {[%emt 0:00:12]} 19. Bc5 {[%emt 0:02:44]} Nd7 {[%emt 0:00:27]} 20. Bd4 {[%emt 0:00:15]} Qe7 {[%emt 0:00:03]} 21. Rab1 {[%emt 0:25:13]} b6 {[%emt 0:05:11]} 22. h4 {[%emt 0:01:55]} Nc5 {[%emt 0:06:04]} 23. Bxc5 {[%emt 0:00:56]} Qxc5 {[%emt 0:04:19]} 24. Qxc5 {[%emt 0:00:17]} bxc5 {[%emt 0:00:04]} 25. e5 {[%emt 0:01:23]} Bxg2 {[%emt 0:00:21]} 26. Kxg2 {[%emt 0:00:06]} Red8 {[%emt 0:16:19]} 27. Red1 {[%emt 0:08:00]} Rxd1 {[%emt 0:01:00]} 28. Rxd1 {[%emt 0:00:07]} Rb8 {[%emt 0:00:06]} 29. Kf3 {[%emt 0:05:34]} a4 {[%emt 0:04:32]} 30. g4 {[%emt 0:00:32]} a3 {[%emt 0:02:26]} 31. f5 {[%emt 0:02:52]} h5 {[%emt 0:00:38]} 32. fxg6 {[%emt 0:00:15]} fxg6 {[%emt 0:00:12]} 33. gxh5 {[%emt 0:00:14]} gxh5 {[%emt 0:00:38]} 34. Kf4 {[%emt 0:02:49]} Rb2 {[%emt 0:00:36]} 35. Kf5 {[%emt 0:01:15]} Rxa2 {[%emt 0:00:58]} 36. Rd8+ {[%emt 0:00:57]} Kg7 {[%emt 0:00:14]} 37. Rd7+ {[%emt 0:00:25]} Kh6 {[%emt 0:00:12]} 38. Rxc7 {[%emt 0:02:31]} Rf2+ {[%emt 0:00:26]} 39. Ke4 {[%emt 0:00:37]} a2 {[%emt 0:05:45]} 40. Ra7 {[%emt 0:00:00]} Rc2 {[%emt 0:00:00]} 41. Ra6+ {[%emt 0:06:40]} Kg7 {[%emt 0:02:58]} 42. Kf5 {[%emt 0:06:57]} Rxc3 {[%emt 0:07:38]} 43. Ra7+ {[%emt 0:00:42]} Kh6 {[%emt 0:00:11]} 44. Rxa2 {[%emt 0:00:14]} Rf3+ {[%emt 0:00:55]} 45. Ke4 {[%emt 0:04:29]} Rh3 {[%emt 0:00:37]} 46. e6 {[%emt 0:00:05]} Rxh4+ {[%emt 0:06:23]} 47. Kd5 {[%emt 0:00:17]} Rd4+ {[%emt 0:07:12]} 48. Kxc5 {[%emt 0:00:22]} Re4 {[%emt 0:00:12]} 49. Kd6 {[%emt 0:00:35]} Kg5 {[%emt 0:04:48]} 50. e7 {[%emt 0:05:23]} h4 {[%emt 0:00:25]} 51. Ra3 {[%emt 0:06:34]} Re1 {[%emt 0:00:57]} 52. Rd3 {[%emt 0:00:12]} Kg4 {[%emt 0:01:35]} 53. Rd5 {[%emt 0:01:54]} h3 {[%emt 0:03:51]} 54. Re5 {[%emt 0:00:34]} Rxe5 {[%emt 0:00:05]} 55. Kxe5 {[%emt 0:00:03]} h2 {[%emt 0:00:04]} 56. e8=Q {[%emt 0:00:05]} h1=Q {[%emt 0:00:02]} 57. Qg6+ {[%emt 0:00:05]} Kh3 {[%emt 0:00:03]} 58. Qf5+ {[%emt 0:00:46]} Kh2 {[%emt 0:00:34]} 59. Qh5+ {[%emt 0:00:20]} Kg1 {[%emt 0:00:14]} 60. Qxh1+ 1/2-1/2

[Event "22nd ETCC Women 2019"]
[Site "Batumi"]
[Date "2019.10.25"]
[Round "2.2"]
[White "Klinova, Masha"]
[Black "Pipia, Ekaterine"]
[Result "1/2-1/2"]
[ECO "B25"]
[WhiteElo "2277"]
[BlackElo "1935"]
[Annotator "NA"]
[PlyCount "92"]
[EventDate "2019.10.24"]
[EventType "team-tourn"]
[EventCountry "GEO"]
[SourceTitle "playchess.com"]
[Source "ChessBase"]
[SourceQuality "1"]
[WhiteTeam "Israel"]
[BlackTeam "Georgia"]
[WhiteTeamCountry "ISR"]
[BlackTeamCountry "GEO"]
[TimeControl "40/5400+30:1800+30"]

1. e4 {[%emt 0:00:00]} c5 {[%emt 0:00:00]} 2. Nc3 {[%emt 0:00:05]} d6 {[%emt 0:00:00]} 3. g3 {[%emt 0:00:25]} g6 {[%emt 0:00:16]} 4. Bg2 {[%emt 0:00:06]} Bg7 {[%emt 0:00:06]} 5. d3 {[%emt 0:00:20]} Nc6 {[%emt 0:00:33]} 6. f4 {[%emt 0:00:31]} e6 {[%emt 0:01:50]} 7. Nf3 {[%emt 0:00:39]} Nge7 {[%emt 0:00:35]} 8. O-O {[%emt 0:00:35]} O-O {[%emt 0:00:34]} 9. Be3 {[%emt 0:03:35]} b6 {[%emt 0:01:31]} 10. Qd2 {[%emt 0:07:13]} d5 {[%emt 0:02:30]} 11. Bf2 {[%emt 0:13:48]} dxe4 {[%emt 0:02:03]} 12. dxe4 {[%emt 0:02:05]} Qxd2 {[%emt 0:01:28]} 13. Nxd2 {[%emt 0:00:05]} Ba6 {[%emt 0:06:07]} 14. Rfc1 {[%emt 0:07:19]} Rad8 {[%emt 0:08:48]} 15. Nf3 {[%emt 0:11:08]} Bxc3 {[%emt 0:03:29]} 16. bxc3 {[%emt 0:00:10]} Na5 {[%emt 0:02:04]} 17. Rd1 {[%emt 0:05:36]} Nc4 {[%emt 0:04:29]} 18. Bf1 {[%emt 0:05:10]} Nc6 {[%emt 0:02:13]} 19. g4 {[%emt 0:19:39]} Rxd1 {[%emt 0:02:56]} 20. Rxd1 {[%emt 0:00:05]} Nb2 {[%emt 0:01:13]} 21. Rd7 {[%emt 0:02:18]} Bxf1 {[%emt 0:01:38]} 22. Kxf1 {[%emt 0:00:05]} Rd8 {[%emt 0:03:56]} 23. Rc7 {[%emt 0:01:41]} Na5 {[%emt 0:00:51]} 24. Bh4 {[%emt 0:02:10]} Rf8 {[%emt 0:05:46]} 25. Ke2 {[%emt 0:04:09]} a6 {[%emt 0:05:14]} 26. Ne5 {[%emt 0:03:54]} Nbc4 {[%emt 0:02:15]} 27. Nd7 {[%emt 0:02:35]} Ra8 {[%emt 0:00:02]} 28. Bf6 {[%emt 0:01:42]} h6 {[%emt 0:04:51]} 29. h4 {[%emt 0:00:31]} Kh7 {[%emt 0:08:08]} 30. g5 {[%emt 0:01:10]} h5 {[%emt 0:02:48]} 31. Be5 {[%emt 0:02:22]} Kg8 {[%emt 0:01:40]} 32. Bf6 {[%emt 0:00:34]} Kh7 {[%emt 0:00:05]} 33. Ne5 {[%emt 0:01:52]} Nxe5 {[%emt 0:00:47]} 34. Bxe5 {[%emt 0:00:09]} Kg8 {[%emt 0:00:38]} 35. Bf6 {[%emt 0:00:12]} Nc4 {[%emt 0:03:55]} 36. Rd7 {[%emt 0:00:24]} Kf8 {[%emt 0:01:23]} 37. Kd3 {[%emt 0:00:46]} Nb2+ {[%emt 0:00:15]} 38. Ke2 {[%emt 0:00:06]} Nc4 {[%emt 0:00:03]} 39. Kd3 {[%emt 0:00:21]} Nb2+ {[%emt 0:00:04]} 40. Ke2 {[%emt 0:00:00]} Nc4 {[%emt 0:00:00]} 41. Kf3 {[%emt 0:01:17]} Na3 {[%emt 0:11:07]} 42. Rb7 {[%emt 0:02:46]} Nc4 {[%emt 0:00:50]} 43. Ke2 {[%emt 0:06:26]} a5 {[%emt 0:03:34]} 44. Kd3 {[%emt 0:05:00]} Nb2+ {[%emt 0:00:05]} 45. Ke2 {[%emt 0:01:09]} Nc4 {[%emt 0:00:03]} 46. Kd3 {[%emt 0:04:09]} Nb2+ {[%emt 0:00:07]} 1/2-1/2

[Event "22nd ETCC Women 2019"]
[Site "Batumi"]
[Date "2019.10.25"]
[Round "2.3"]
[White "Gunina, Valentina"]
[Black "Khukhashvili, Sopiko"]
[Result "0-1"]
[ECO "C10"]
[WhiteElo "2509"]
[BlackElo "2341"]
[Annotator "ChessBase"]
[PlyCount "156"]
[EventDate "2019.10.24"]
[EventType "team-tourn"]
[EventCountry "GEO"]
[SourceTitle "playchess.com"]
[Source "ChessBase"]
[SourceQuality "1"]
[WhiteTeam "Russia"]
[BlackTeam "Georgia"]
[WhiteTeamCountry "RUS"]
[BlackTeamCountry "GEO"]
[TimeControl "40/5400+30:1800+30"]

1. e4 {[%emt 0:00:00]} e6 {[%emt 0:00:00]} 2. d4 {[%emt 0:00:40]} d5 {[%emt 0:00:00]} 3. Nc3 {[%emt 0:00:35]} dxe4 {[%emt 0:00:00]} 4. Nxe4 {[%emt 0:00:14]} Nd7 {[%emt 0:00:00]} 5. Nf3 {[%emt 0:00:44]} Ngf6 {[%emt 0:00:00]} 6. Bg5 {[%emt 0:01:15]} h6 {[%emt 0:04:24]} 7. Nxf6+ {[%emt 0:01:33]} Nxf6 {[%emt 0:00:10]} 8. Bxf6 {[%emt 0:02:19]} gxf6 {[%emt 0:07:49]} 9. Bc4 {[%emt 0:02:13]} c5 {[%emt 0:03:49]} 10. d5 {[%emt 0:01:54]} e5 {[%emt 0:00:21]} 11. Bb5+ {[%emt 0:01:16]} Bd7 {[%emt 0:00:14]} 12. Bxd7+ {[%emt 0:00:32]} Qxd7 {[%emt 0:00:07]} 13. Qd3 {[%emt 0:00:15]} O-O-O {[%emt 0:01:12]} 14. O-O-O {[%emt 0:04:31]} Rg8 {[%emt 0:00:11]} 15. g3 {[%emt 0:01:44]} Rg4 {[%emt 0:01:49]} 16. Rhe1 {[%emt 0:08:43]} Ra4 {[%emt 0:02:36]} 17. Kb1 {[%emt 0:07:11]} c4 {[%emt 0:03:18]} 18. Qe3 {[%emt 0:08:34]} Qb5 {[%emt 0:04:20]} 19. b3 {[%emt 0:04:55]} Kb8 {[%emt 0:04:30]} 20. Nd2 {[%emt 0:09:39]} cxb3 {[%emt 0:41:02]} 21. cxb3 {[%emt 0:05:40]} Bc5 {[%emt 0:03:50]} 22. Qf3 {[%emt 0:02:22]} Bd4 {[%emt 0:05:50]} 23. Qe2 {[%emt 0:10:23]} Qb4 {[%emt 0:02:54]} 24. Nf3 {[%emt 0:11:58]} Bc3 {[%emt 0:00:13]} 25. Rf1 {[%emt 0:06:56]} Rd6 {[%emt 0:00:07]} 26. Ne1 {[%emt 0:05:25]} Rxa2 {[%emt 0:09:44]} 27. Qxa2 {[%emt 0:00:03]} Ra6 {[%emt 0:00:07]} 28. Nc2 {[%emt 0:00:18]} Qd6 {[%emt 0:00:11]} 29. Qxa6 {[%emt 0:01:04]} Qxa6 {[%emt 0:00:16]} 30. d6 {[%emt 0:00:40]} Qb5 {[%emt 0:00:02]} 31. Ka2 {[%emt 0:01:01]} Kc8 {[%emt 0:00:01]} 32. d7+ {[%emt 0:00:38]} Kd8 {[%emt 0:00:02]} 33. f3 {[%emt 0:00:31]} Qe2 {[%emt 0:00:28]} 34. Kb1 {[%emt 0:00:34]} a5 {[%emt 0:00:02]} 35. Rc1 {[%emt 0:00:35]} a4 {[%emt 0:01:08]} 36. bxa4 {[%emt 0:00:28]} Qc4 {[%emt 0:04:03]} 37. Na1 {[%emt 0:00:06]} Qb4+ {[%emt 0:00:34]} 38. Kc2 {[%emt 0:00:01]} Qb2+ {[%emt 0:01:59]} 39. Kd3 {[%emt 0:00:01]} Qd2+ {[%emt 0:00:12]} 40. Kc4 {[%emt 0:00:00]} Qd4+ {[%emt 0:00:00]} 41. Kb3 {[%emt 0:01:52]} Qb4+ {[%emt 0:03:18]} 42. Kc2 {[%emt 0:00:53]} Bd4 {[%emt 0:00:34]} 43. Kd1 {[%emt 0:09:14]} Qa3 {[%emt 0:00:57]} 44. Ke2 {[%emt 0:05:35]} Qe3+ {[%emt 0:00:03]} 45. Kd1 {[%emt 0:00:05]} Bb2 {[%emt 0:00:17]} 46. Kc2 {[%emt 0:02:36]} Qc3+ {[%emt 0:02:58]} 47. Kb1 {[%emt 0:00:29]} Bxc1 {[%emt 0:00:21]} 48. Rxc1 {[%emt 0:00:04]} Qxf3 {[%emt 0:00:06]} 49. Ka2 {[%emt 0:02:52]} Qe4 {[%emt 0:00:43]} 50. Ka3 {[%emt 0:00:25]} Qe2 {[%emt 0:02:09]} 51. Rc2 {[%emt 0:04:26]} Qd3+ {[%emt 0:00:06]} 52. Kb2 {[%emt 0:00:42]} Qd4+ {[%emt 0:01:04]} 53. Rc3 {[%emt 0:00:10]} Qxa4 {[%emt 0:00:25]} 54. Nb3 {[%emt 0:00:04]} Qb5 {[%emt 0:00:28]} 55. Rc5 {[%emt 0:01:27]} Qxd7 {[%emt 0:00:41]} 56. Rc2 {[%emt 0:00:06]} Qb5 {[%emt 0:00:28]} 57. Rc5 {[%emt 0:00:19]} Qb4 {[%emt 0:00:19]} 58. Rc2 {[%emt 0:00:14]} Ke7 {[%emt 0:00:53]} 59. Rc7+ {[%emt 0:00:22]} Kf8 {[%emt 0:00:19]} 60. Rc2 {[%emt 0:01:09]} Kg7 {[%emt 0:00:06]} 61. Rf2 {[%emt 0:00:23]} Kg6 {[%emt 0:00:08]} 62. Rc2 {[%emt 0:00:16]} h5 {[%emt 0:00:13]} 63. Rc8 {[%emt 0:00:55]} h4 {[%emt 0:01:18]} 64. Rh8 {[%emt 0:00:25]} hxg3 {[%emt 0:00:13]} 65. hxg3 {[%emt 0:00:03]} Qe4 {[%emt 0:00:51]} 66. Rc8 {[%emt 0:00:52]} b5 {[%emt 0:00:16]} 67. Nd2 {[%emt 0:02:16]} Qd3 {[%emt 0:00:28]} 68. Kc1 {[%emt 0:01:28]} Kf5 {[%emt 0:00:18]} 69. Rc7 {[%emt 0:00:27]} b4 {[%emt 0:00:42]} 70. Rb7 Qxg3 {[%emt 0:00:15]} 71. Kd1 {[%emt 0:03:00]} Qg1+ {[%emt 0:00:53]} 72. Kc2 {[%emt 0:00:06]} Qc5+ {[%emt 0:00:04]} 73. Kd1 {[%emt 0:00:05]} Kf4 {[%emt 0:00:53]} 74. Rxf7 {[%emt 0:01:19]} Qg1+ {[%emt 0:00:06]} 75. Ke2 {[%emt 0:00:06]} Qg2+ {[%emt 0:00:24]} 76. Ke1 {[%emt 0:00:42]} f5 {[%emt 0:00:43]} 77. Nf1 {[%emt 0:01:08]} b3 {[%emt 0:00:09]} 78. Rf8 {[%emt 0:01:07]} b2 {[%emt 0:00:46]} 0-1

[Event "22nd ETCC Women 2019"]
[Site "Batumi"]
[Date "2019.10.25"]
[Round "2.3"]
[White "Donghvani, Nia"]
[Black "Lahav, Michal"]
[Result "1-0"]
[ECO "E81"]
[WhiteElo "1903"]
[BlackElo "2221"]
[Annotator "NA"]
[PlyCount "53"]
[EventDate "2019.10.24"]
[EventType "team-tourn"]
[EventCountry "GEO"]
[SourceTitle "playchess.com"]
[Source "ChessBase"]
[SourceQuality "1"]
[WhiteTeam "Georgia"]
[BlackTeam "Israel"]
[WhiteTeamCountry "GEO"]
[BlackTeamCountry "ISR"]
[TimeControl "40/5400+30:1800+30"]

1. d4 {[%emt 0:00:00]} Nf6 {[%emt 0:00:00]} 2. c4 {[%emt 0:00:00]} g6 {[%emt 0:00:21]} 3. Nc3 {[%emt 0:00:13]} Bg7 {[%emt 0:00:05]} 4. e4 {[%emt 0:00:14]} d6 {[%emt 0:00:03]} 5. f3 {[%emt 0:00:22]} O-O {[%emt 0:00:19]} 6. Be3 {[%emt 0:00:10]} Na6 {[%emt 0:03:45]} 7. Qd2 {[%emt 0:02:18]} e5 {[%emt 0:10:00]} 8. O-O-O {[%emt 0:12:01]} exd4 {[%emt 0:10:13]} 9. Bxd4 {[%emt 0:01:46]} c6 {[%emt 0:01:22]} 10. h4 {[%emt 0:02:03]} Qa5 {[%emt 0:06:24]} 11. h5 {[%emt 0:06:56]} Nxh5 {[%emt 0:05:59]} 12. Bxg7 {[%emt 0:00:19]} Kxg7 {[%emt 0:00:04]} 13. g4 {[%emt 0:00:37]} Nf6 {[%emt 0:11:33]} 14. Qh6+ {[%emt 0:45:25]} Kg8 {[%emt 0:00:04]} 15. Rxd6 {[%emt 0:02:27]} Be6 {[%emt 0:00:43]} 16. Qf4 {[%emt 0:06:53]} Kg7 {[%emt 0:07:48]} 17. e5 {[%emt 0:01:22]} Ng8 {[%emt 0:00:08]} 18. Nge2 {[%emt 0:08:29]} Rfe8 {[%emt 0:13:52]} 19. Ng3 {[%emt 0:03:17]} b5 {[%emt 0:11:08]} 20. Nf5+ {[%emt 0:03:05]} Bxf5 {[%emt 0:13:51]} 21. gxf5 {[%emt 0:00:04]} Rad8 {[%emt 0:00:03]} 22. f6+ {[%emt 0:01:31]} Kh8 {[%emt 0:00:42]} 23. Rxd8 {[%emt 0:00:17]} Qxd8 {[%emt 0:00:57]} 24. Ne4 {[%emt 0:00:47]} h5 {[%emt 0:01:31]} 25. Rxh5+ {[%emt 0:00:40]} gxh5 {[%emt 0:00:02]} 26. Qg5 {[%emt 0:00:01]} Nxf6 {[%emt 0:00:58]} 27. Nxf6 {[%emt 0:01:09]} 1-0

[Event "22nd ETCC Women 2019"]
[Site "Batumi"]
[Date "2019.10.25"]
[Round "2.4"]
[White "Gvetadze, Sofio"]
[Black "Kashlinskaya, Alina"]
[Result "0-1"]
[ECO "C42"]
[WhiteElo "2297"]
[BlackElo "2481"]
[Annotator "ChessBase"]
[PlyCount "76"]
[EventDate "2019.10.24"]
[EventType "team-tourn"]
[EventCountry "GEO"]
[SourceTitle "playchess.com"]
[Source "ChessBase"]
[SourceQuality "1"]
[WhiteTeam "Georgia"]
[BlackTeam "Russia"]
[WhiteTeamCountry "GEO"]
[BlackTeamCountry "RUS"]
[TimeControl "40/5400+30:1800+30"]

1. e4 {[%emt 0:00:00]} e5 {[%emt 0:00:00]} 2. Nf3 {[%emt 0:00:00]} Nf6 {[%emt 0:00:00]} 3. Nxe5 {[%emt 0:00:03]} d6 {[%emt 0:00:00]} 4. Nf3 {[%emt 0:00:06]} Nxe4 {[%emt 0:00:03]} 5. d3 {[%emt 0:00:07]} Nf6 {[%emt 0:00:09]} 6. d4 {[%emt 0:00:05]} d5 {[%emt 0:00:16]} 7. Bd3 {[%emt 0:00:12]} Bd6 {[%emt 0:00:11]} 8. O-O {[%emt 0:00:16]} O-O {[%emt 0:00:11]} 9. Bg5 {[%emt 0:00:22]} Bg4 {[%emt 0:00:54]} 10. Nbd2 {[%emt 0:00:53]} Nbd7 {[%emt 0:00:31]} 11. c3 {[%emt 0:00:49]} c6 {[%emt 0:02:59]} 12. Qc2 {[%emt 0:02:53]} Qc7 {[%emt 0:00:24]} 13. Rfe1 {[%emt 0:01:45]} Rfe8 {[%emt 0:05:35]} 14. Bh4 {[%emt 0:10:25]} Bh5 {[%emt 0:02:06]} 15. Bg3 {[%emt 0:04:07]} Bxg3 {[%emt 0:02:33]} 16. hxg3 {[%emt 0:01:07]} Bg6 {[%emt 0:00:20]} 17. Bxg6 {[%emt 0:24:18]} hxg6 {[%emt 0:00:14]} 18. Rad1 {[%emt 0:00:36]} Nb6 {[%emt 0:27:52]} 19. Qb1 {[%emt 0:09:01]} Rad8 {[%emt 0:10:09]} 20. Ne5 {[%emt 0:21:45]} Re7 {[%emt 0:05:28]} 21. g4 {[%emt 0:02:00]} Rde8 {[%emt 0:02:07]} 22. Nf1 {[%emt 0:12:22]} Nbd7 {[%emt 0:04:21]} 23. Nxd7 {[%emt 0:00:40]} Qxd7 {[%emt 0:00:17]} 24. f3 {[%emt 0:00:23]} Qd6 {[%emt 0:03:27]} 25. Qc1 {[%emt 0:00:50]} Nd7 {[%emt 0:10:25]} 26. Kf2 {[%emt 0:01:36]} Nb6 {[%emt 0:01:06]} 27. Rxe7 {[%emt 0:00:41]} Qxe7 {[%emt 0:00:24]} 28. Qc2 {[%emt 0:04:46]} Qh4+ {[%emt 0:05:23]} 29. Kg1 {[%emt 0:00:26]} Re6 {[%emt 0:00:17]} 30. b3 {[%emt 0:00:23]} Qe7 {[%emt 0:00:27]} 31. Kf2 {[%emt 0:00:27]} Nc8 {[%emt 0:05:55]} 32. Qd2 {[%emt 0:00:30]} Qh4+ {[%emt 0:00:10]} 33. g3 {[%emt 0:00:55]} Qh1 {[%emt 0:01:36]} 34. Re1 {[%emt 0:01:15]} Rf6 {[%emt 0:00:08]} 35. Qd3 {[%emt 0:00:46]} Nd6 {[%emt 0:00:22]} 36. f4 {[%emt 0:00:35]} Ne4+ {[%emt 0:00:54]} 37. Ke3 {[%emt 0:00:26]} Qg1+ {[%emt 0:00:22]} 38. Ke2 {[%emt 0:00:05]} Qg2+ {[%emt 0:00:14]} 0-1

[Event "22nd ETCC Women 2019"]
[Site "Batumi"]
[Date "2019.10.25"]
[Round "2.4"]
[White "Nesterovskaya, Anzhelika"]
[Black "Lomaia, Diana"]
[Result "1-0"]
[ECO "B50"]
[WhiteElo "2124"]
[BlackElo "1861"]
[Annotator "NA"]
[PlyCount "71"]
[EventDate "2019.10.24"]
[EventType "team-tourn"]
[EventCountry "GEO"]
[SourceTitle "playchess.com"]
[Source "ChessBase"]
[SourceQuality "1"]
[WhiteTeam "Israel"]
[BlackTeam "Georgia"]
[WhiteTeamCountry "ISR"]
[BlackTeamCountry "GEO"]
[TimeControl "40/5400+30:1800+30"]

1. e4 {[%emt 0:00:00]} c5 {[%emt 0:00:00]} 2. Nf3 {[%emt 0:00:00]} d6 {[%emt 0:00:00]} 3. c3 {[%emt 0:00:06]} Nf6 {[%emt 0:00:39]} 4. Bd3 {[%emt 0:00:21]} Nc6 {[%emt 0:04:35]} 5. Bc2 {[%emt 0:01:24]} g6 {[%emt 0:01:58]} 6. h3 {[%emt 0:02:33]} Bg7 {[%emt 0:00:47]} 7. O-O {[%emt 0:00:14]} O-O {[%emt 0:02:33]} 8. Re1 {[%emt 0:03:00]} b5 {[%emt 0:11:40]} 9. d4 {[%emt 0:03:24]} cxd4 {[%emt 0:08:20]} 10. cxd4 {[%emt 0:00:13]} e5 {[%emt 0:10:07]} 11. d5 {[%emt 0:00:39]} Ne7 {[%emt 0:02:45]} 12. Bd3 {[%emt 0:09:37]} a6 {[%emt 0:05:44]} 13. a4 {[%emt 0:13:45]} Bd7 {[%emt 0:02:51]} 14. Qe2 {[%emt 0:12:43]} Qb6 {[%emt 0:04:45]} 15. Na3 {[%emt 0:15:23]} Rab8 {[%emt 0:04:36]} 16. axb5 {[%emt 0:02:22]} axb5 {[%emt 0:04:36]} 17. Be3 {[%emt 0:01:04]} Qb7 {[%emt 0:00:40]} 18. Nd2 {[%emt 0:00:42]} Ne8 {[%emt 0:17:00]} 19. Nb3 {[%emt 0:03:42]} f5 {[%emt 0:07:39]} 20. f3 {[%emt 0:00:23]} Nf6 {[%emt 0:02:32]} 21. Na5 {[%emt 0:03:35]} Qc7 {[%emt 0:01:33]} 22. Nb3 {[%emt 0:09:34]} Nc8 {[%emt 0:03:18]} 23. Rec1 {[%emt 0:00:56]} Qd8 {[%emt 0:00:26]} 24. Nd2 {[%emt 0:02:02]} fxe4 {[%emt 0:00:53]} 25. fxe4 {[%emt 0:00:04]} Qe8 {[%emt 0:01:12]} 26. b4 {[%emt 0:01:43]} Nh5 {[%emt 0:00:26]} 27. Nf1 {[%emt 0:02:06]} Nf4 {[%emt 0:00:13]} 28. Qd2 {[%emt 0:00:11]} Nxd3 {[%emt 0:00:46]} 29. Qxd3 {[%emt 0:00:01]} Nb6 {[%emt 0:00:37]} 30. Nd2 {[%emt 0:00:27]} Na4 {[%emt 0:00:34]} 31. Nb3 {[%emt 0:01:09]} Rf7 {[%emt 0:00:24]} 32. Na5 {[%emt 0:00:18]} Bf6 {[%emt 0:01:07]} 33. Nc6 {[%emt 0:00:31]} Bxc6 {[%emt 0:00:38]} 34. dxc6 {[%emt 0:00:04]} Rc7 {[%emt 0:00:32]} 35. Nxb5 {[%emt 0:00:32]} Rxc6 {[%emt 0:00:19]} 36. Qd5+ {[%emt 0:00:09]} 1-0